fUSD/lending_fUSD_20240329
["ID","MTS","AMOUNT","RATE_DAILY","PERIOD"]
[320909039,1711699832823,-233.55,0.00046419,2]
[320909040,1711699832832,-250.0,0.00046539,112]
[320909042,1711699832842,-1000.0,0.00046576,2]
[320909043,1711699832852,-166.38,0.00046731,2]
[320909044,1711699832863,-202.050197,0.00046836,30]
[320909045,1711699832873,-4051.279,0.00046914,2]
[320909046,1711699832883,-169.15,0.00046944,2]
[320909047,1711699832894,-2500.0,0.00047,20]
[320909048,1711699832904,-2474.93,0.00047017,2]
[320909050,1711699832914,-1205.35,0.00047017,10]
[320909052,1711699832925,-166.38,0.00047079,2]
[320909054,1711699832934,-153.11361921,0.00047157,30]
[320909055,1711699832944,-2500.0,0.0004725,20]
[320909057,1711699832954,-150.4,0.00047372,2]
[320909059,1711699832963,-166.38,0.00047427,2]
[320909061,1711699832974,-2500.0,0.000475,20]
[320909063,1711699832983,-1020.21,0.00047599,120]
[320909065,1711699832993,-166.38,0.00047775,2]
[320909067,1711699833003,-150.0,0.00047858,120]
[320909069,1711699833013,-490.81948381,0.000479,2]
[320909071,1711699833024,-2500.0,0.00048,20]
[320909073,1711699833033,-166.38,0.00048123,2]
[320909075,1711699833043,-152.91053358,0.0004822,30]
[320909078,1711699833064,-372.08946642,0.0004822,30]
[320909080,1711699833073,-184.40480274,0.00048229,2]
[320909082,1711699833083,-1239.66305081,0.00048229,2]
[320909084,1711699833094,-214.57752999,0.00048229,2]
[320909086,1711699833105,-356.38,0.00048239,2]
[320909088,1711699833114,-4014.91854597,0.0004828,30]
[320909090,1711699833123,-228274.35696187,0.0004829,10]
[320909092,1711699833133,-869.11,0.00048329,2]
[320909094,1711699833143,-4191.86579778,0.00048348,2]
[320909096,1711699833153,-151.032916,0.00048448,114]
[320909098,1711699833163,-166.38,0.00048471,2]
[320909100,1711699833175,-525.0,0.00048494,30]
[320909102,1711699833185,-1662.43403104,0.000485,120]
[320909104,1711699833196,-2500.0,0.000485,20]
[320909106,1711699833206,-3178.2172,0.000486,2]
[320909108,1711699833216,-1454.24058075,0.00048637,2]
[320909110,1711699833225,-292317.40384655,0.000487,5]
[320909112,1711699833235,-903.4589,0.000487,2]
[320909114,1711699833245,-1061.0,0.000487,117]
[320909116,1711699833255,-150.14,0.000487,120]
[320909118,1711699833265,-150.14,0.00048757,120]
[320909120,1711699833275,-525.0,0.00048767,30]
[320909122,1711699833285,-5000.0,0.00048767,3]
[320909124,1711699833295,-212.0,0.0004878,2]
[320909126,1711699833305,-3264.7375588,0.0004878,2]
[320909128,1711699833315,-214.0266689,0.0004878,2]
[320909130,1711699833325,-250.15048124,0.0004878,2]
[320909132,1711699833335,-202.58,0.00048796,15]
[320909134,1711699833345,-2500.0,0.000488,20]
[320909136,1711699833355,-2850.555474,0.000488,67]
[320909138,1711699833365,-150.0,0.000488,120]
[320909140,1711699833376,-166.38,0.00048819,2]
[320909143,1711699833386,-300.0,0.00048835,120]
[320909144,1711699833396,-358.0,0.0004885,15]
[320909146,1711699833406,-226.0,0.0004885,15]
[320909148,1711699833418,-150.0,0.00048854,2]
[320909149,1711699833428,-150.0,0.00048854,2]
[320909150,1711699833438,-358.0,0.0004886,15]
[320909151,1711699833448,-126.40129455,0.0004886,15]
[320909164,1711699838114,-99.59870545,0.0004886,15]
[320909166,1711699838124,-150.14,0.0004887,120]
[320909168,1711699838134,-150.14,0.0004887,120]
[320909170,1711699838143,-358.0,0.0004887,15]
[320909172,1711699838153,-226.0,0.0004887,15]
[320909174,1711699838162,-12.30896144,0.0004887,2]
[320909176,1711699838176,-10069.45586123,0.0004887,2]
[320909183,1711699838229,-741.27723955,0.0004887,2]
[320909185,1711699838240,-420.8888349,0.0004887,2]
[320909187,1711699838253,-298.52743707,0.0004887,2]
[320909189,1711699838348,-1309.3937642,0.0004887,2]
[320909190,1711699838360,-577.67408651,0.0004887,2]
[320909191,1711699838370,-1607.9003854,0.0004887,2]
[320909192,1711699838381,-1242.3866503,0.0004887,2]
[320909193,1711699838391,-150.14,0.0004887,120]
[320909194,1711699838401,-150.14,0.0004887,120]
[320909195,1711699838411,-150.14,0.0004887,120]
[320909196,1711699838422,-150.14,0.0004887,120]
[320909197,1711699838433,-150.14,0.0004887,120]
[320909198,1711699838443,-150.14,0.0004887,120]
[320909199,1711699838452,-150.14,0.0004887,120]
[320909200,1711699838462,-150.14,0.0004887,120]
[320909201,1711699838472,-150.14,0.0004887,120]
[320909202,1711699838481,-150.14,0.0004887,120]
[320909203,1711699838491,-150.14,0.0004887,120]
[320909204,1711699838501,-150.14,0.0004887,120]
[320909205,1711699838511,-150.14,0.0004887,120]
[320909206,1711699838520,-150.14,0.0004887,120]
[320909207,1711699838530,-150.14,0.0004887,120]
[320909208,1711699838540,-251.12719704,0.00048877,30]
[320909209,1711699838553,-150.0,0.00048877,30]
[320909210,1711699838563,-150.68854939,0.00048877,30]
[320909211,1711699838573,-150.0,0.00048877,30]
[320909212,1711699838583,-150.91622145,0.00048877,30]
[320909213,1711699838596,-150.0,0.00048877,30]
[320909215,1711699838605,-150.84293982,0.00048877,30]
[320909217,1711699838614,-150.0,0.00048877,30]
[320909219,1711699838626,-155.45137426,0.00048877,4]
[320909221,1711699838635,-315.8073393,0.00048877,4]
[320909223,1711699838645,-357.96365984,0.00048877,4]
[320909225,1711699838654,-3105.61063994,0.00048878,4]
[320909227,1711699838664,-1030.80917958,0.00048879,4]
[320909229,1711699838673,-459.7138166,0.00048879,4]
[320909231,1711699838682,-40123.63968818,0.00048879,4]
[320909233,1711699838694,-2917.42170074,0.00048879,4]
[320909239,1711699838756,-11659.40122919,0.00048879,4]
[320909241,1711699838766,-607.68319677,0.00048879,2]
[320909243,1711699838775,-500.0,0.00048879,60]
[320909245,1711699838784,-206.0,0.0004888,7]
[320909247,1711699838793,-2386.81628972,0.0004888,15]
[320909249,1711699838804,-20522.29877285,0.0004888,15]
[320909260,1711699840109,-4198.87836824,0.0004888,15]
[320909267,1711699840184,-1799.98952458,0.0004888,15]
[320909270,1711699840197,-1499.98792114,0.0004888,15]
[320909283,1711699840324,-6980.1,0.0004888,15]
[320909286,1711699840508,-17465.75000001,0.0004888,15]
[320909326,1711699843204,-306.37553715,0.000486,2]
[320909328,1711699843214,-560.93833548,0.00048879,2]
[320909330,1711699843224,-6111.08612737,0.0004888,15]
[320909334,1711699843331,-341.03387322,0.00048879,4]
[320909335,1711699843342,-72575.37662795,0.00048879,2]
[320909336,1711699843351,-190636.46386693,0.0004888,15]
[320909337,1711699843361,-255033.13150713,0.0004888,2]
[320909338,1711699843370,-877121.88795281,0.0004888,2]
[320909339,1711699843393,-2941.42496401,0.0004888,2]
[320909340,1711699843489,-488.46849189,0.0004888,2]
[320909341,1711699843500,-367.50000002,0.0004888,2]
[320909342,1711699843581,-4449.99748083,0.0004888,2]
[320909343,1711699843594,-10464.9688,0.0004888,2]
[320909344,1711699843699,-439.57945655,0.00048879,30]
[320909345,1711699843708,-162851.39754029,0.0004888,2]
[320909346,1711699843717,-35389.36630939,0.0004888,2]
[320909347,1711699843729,-913.92774044,0.0004888,2]
[320909348,1711699843761,-1755.9391492,0.00048879,4]
[320909349,1711699843770,-20881.90515479,0.0004888,2]
[320909350,1711699843781,-19109.68868669,0.0004888,2]
[320909569,1711699846292,-310.0,0.00037461,120]
[320909571,1711699846301,-170.31130379,0.00048792,2]
[320909573,1711699846311,-20.3176532,0.00048878,4]
[320909575,1711699846323,-1219.53952613,0.00048878,4]
[320909577,1711699846332,-155.56614274,0.00048878,4]
[320909579,1711699846342,-567.68168731,0.00048878,7]
[320909581,1711699846351,-17.20979615,0.00048879,10]
[320909583,1711699846364,-573.43013765,0.00048879,10]
[320909585,1711699846373,-168.0,0.0004888,7]
[320909587,1711699846383,-203.88291753,0.0004888,2]
[320909590,1711699846394,-1324.8,0.0004888,2]
[320909592,1711699846406,-35265.43170744,0.0004888,2]
[320909596,1711699846432,-33073.99119661,0.0004888,2]
[320909598,1711699846447,-2908.92417397,0.0004888,2]
[320909604,1711699846494,-400.07057799,0.00048878,4]
[320909606,1711699846504,-47118.29984643,0.0004888,2]
[320909613,1711699846557,-69743.00000005,0.0004888,2]
[320909620,1711699846616,-1221.24095623,0.0004888,2]
[320910042,1711700506900,-723.76163546,0.00037459,4]
[320910043,1711700506923,-567.68168731,0.0003746,7]
[320910044,1711700506945,-2802.90833596,0.00037461,4]
[320910045,1711700506967,-31376.60703081,0.00037461,4]
[320910046,1711700517961,-564.34912322,0.00037461,4]
[320910047,1711700517983,-727.09419955,0.00037461,4]
[320910049,1711700749405,-3000000.0,0.00040846,30]
[320910050,1711700754827,-533354.38690212,0.00040846,30]
[320910079,1711701032432,-482.50775697,0.00039099,4]
[320910080,1711701032442,-895.0,0.000391,2]
[320910081,1711701032451,-589.0,0.000392,2]
[320910082,1711701032463,-182.74077982,0.000399,2]
[320910083,1711701032473,-204.67837953,0.0004,15]
[320910084,1711701032482,-418.28,0.0004049,2]
[320910085,1711701032491,-300.0,0.00040736,2]
[320910086,1711701032502,-2026.76,0.00040767,2]
[320910087,1711701032511,-3598.45451601,0.000408,2]
[320910088,1711701032520,-150.99,0.00040826,2]
[320910089,1711701032530,-334.49117814,0.00040826,2]
[320910090,1711701032551,-165.49882186,0.00040826,2]
[320910091,1711701032560,-6193.44,0.00040826,10]
[320910092,1711701032570,-7565.13,0.00040826,2]
[320910093,1711701032579,-1074.23724674,0.00040845,2]
[320910094,1711701032589,-3598.45451596,0.00042133,2]
[320910095,1711701032598,-418.28,0.00042754,2]
[320910096,1711701032608,-182.74077982,0.0004286,2]
[320910097,1711701032617,-150.0,0.00042869,2]
[320910098,1711701032627,-278.45,0.00043085,2]
[320910099,1711701032637,-1547.51,0.00043168,2]
[320910100,1711701032647,-177.25,0.00043228,15]
[320910101,1711701032656,-3598.45451596,0.00043467,2]
[320910102,1711701032665,-9913.55411967,0.00043991,10]
[320910103,1711701032677,-1733.56127489,0.00043991,10]
[320910104,1711701032695,-536.06028573,0.00043991,10]
[320910105,1711701032707,-539.32821336,0.00043991,10]
[320910123,1711701038338,-3783.29395424,0.00043991,10]
[320910135,1711701038501,-1413.88465492,0.00043991,10]
[320910136,1711701038512,-2794.57719852,0.000447,2]
[320910137,1711701038522,-3598.45451596,0.000448,2]
[320910138,1711701038532,-1792.46,0.00044892,2]
[320910139,1711701038542,-159.87362639,0.00044957,30]
[320910140,1711701038551,-418.28,0.00045018,2]
[320910141,1711701038562,-3712.42,0.00045035,2]
[320910142,1711701038572,-200.0,0.00045035,2]
[320910143,1711701038583,-167.0,0.00045039,2]
[320910144,1711701038593,-156.49,0.00045058,2]
[320910145,1711701038602,-241.86704836,0.00045062,30]
[320910146,1711701038613,-250.0,0.00045088,2]
[320910147,1711701038623,-200.0,0.00045108,2]
[320910148,1711701038632,-340.15,0.00045146,2]
[320910149,1711701038643,-156.49,0.00045196,2]
[320910150,1711701038653,-156.49,0.00045334,2]
[320910151,1711701038663,-156.49,0.00045472,2]
[320910152,1711701038673,-156.49,0.00045611,2]
[320910153,1711701038683,-156.49,0.00045749,2]
[320910154,1711701038694,-785.89,0.00045773,2]
[320910155,1711701038704,-1000.0,0.00045786,2]
[320910156,1711701038715,-1950.55255584,0.00045786,2]
[320910157,1711701038745,-1034.57137827,0.00045786,2]
[320910158,1711701038758,-1594.63953994,0.00045786,2]
[320910159,1711701038783,-19320.23652595,0.00045786,2]
[320910161,1711701038797,-182.74077982,0.0004582,2]
[320910162,1711701038807,-156.49,0.00045887,2]
[320910163,1711701038818,-250.0,0.0004596,112]
[320910165,1711701038828,-177.25,0.00045967,15]
[320910166,1711701038838,-209.29,0.00045998,10]
[320910167,1711701038847,-1000.0,0.00046,20]
[320910168,1711701038857,-156.49,0.00046025,2]
[320910169,1711701038867,-3598.45451596,0.00046133,2]
[320910171,1711701038877,-156.49,0.00046163,2]
[320910173,1711701038887,-231.354962,0.0004626,30]
[320910176,1711701038896,-216.285403,0.0004626,30]
[320910177,1711701038906,-156.49,0.00046301,2]
[320910178,1711701038915,-156.49,0.00046439,2]
[320910179,1711701038927,-2794.57719852,0.00046445,2]
[320910180,1711701038936,-262.28,0.00046478,2]
[320910181,1711701038945,-156.49,0.00046577,2]
[320910182,1711701038955,-2076.0,0.00046705,2]
[320910183,1711701038966,-156.49,0.00046715,2]
[320910184,1711701038975,-175.52521133,0.0004679,2]
[320910185,1711701038985,-1272.06884863,0.000468,2]
[320910186,1711701038995,-150.0,0.00046818,120]
[320910187,1711701039007,-231.354962,0.00046838,30]
[320910188,1711701039018,-156.49,0.00046854,2]
[320910189,1711701039027,-169.92,0.00046888,2]
[320910190,1711701039037,-175.52521133,0.00046917,2]
[320910191,1711701039047,-2146.13,0.00046927,120]
[320910192,1711701039057,-156.49,0.00046992,2]
[320910193,1711701039066,-158.69117866,0.00047113,30]
[320910194,1711701039079,-156.49,0.0004713,2]
[320910195,1711701039089,-156.49,0.00047268,2]
[320910196,1711701039100,-418.28,0.00047282,2]
[320910197,1711701039109,-156.49,0.00047406,2]
[320910198,1711701039119,-231.354962,0.00047416,30]
[320910199,1711701039129,-175.52521133,0.00047457,2]
[320910200,1711701039139,-3598.45451596,0.00047467,2]
[320910201,1711701039149,-175.52521133,0.0004749,2]
[320910202,1711701039158,-2581.90868344,0.000475,20]
[320910203,1711701039168,-175.52521133,0.00047765,2]
[320910204,1711701039177,-3712.42,0.00047774,2]
[320910205,1711701039187,-231.354962,0.00047995,30]
[320910206,1711701039197,-390.257099,0.00048,25]
[320910207,1711701039207,-175.52521133,0.00048046,2]
[320910208,1711701039216,-175.52521133,0.00048046,2]
[320910209,1711701039226,-150.11,0.00048055,2]
[320910210,1711701039237,-2731.447,0.00048056,2]
[320910211,1711701039548,-615.913,0.00048056,2]
[320910212,1711701039563,-248.025,0.00048056,2]
[320910213,1711701039573,-200.0,0.00048137,2]
[320910214,1711701039582,-397.189,0.00048189,2]
[320910215,1711701039592,-1381.00929504,0.0004819,2]
[320910216,1711701039601,-163.35113449,0.0004819,2]
[320910217,1711701039611,-175.52521133,0.00048277,2]
[320910218,1711701039621,-175.52521133,0.00048279,2]
[320910219,1711701039630,-175.52521133,0.00048279,2]
[320910220,1711701039639,-175.52521133,0.00048279,2]
[320910221,1711701039649,-175.52521133,0.00048279,2]
[320910222,1711701039658,-175.52521133,0.00048279,2]
[320910223,1711701039668,-175.52521133,0.00048279,2]
[320910224,1711701039677,-175.52521133,0.00048279,2]
[320910225,1711701039688,-175.52521133,0.00048279,2]
[320910226,1711701039697,-175.52521133,0.00048279,2]
[320910227,1711701039707,-175.52521133,0.00048279,2]
[320910228,1711701039716,-175.52521133,0.00048279,2]
[320910229,1711701039726,-175.52521133,0.00048279,2]
[320910230,1711701039735,-175.52521133,0.00048279,2]
[320910231,1711701039744,-175.52521133,0.00048279,2]
[320910232,1711701039754,-175.52521133,0.00048279,2]
[320910233,1711701039763,-175.52521133,0.00048279,2]
[320910234,1711701039773,-175.52521133,0.00048279,2]
[320910235,1711701039782,-175.52521133,0.00048279,2]
[320910236,1711701039792,-175.52521133,0.00048279,2]
[320910237,1711701039801,-175.52521133,0.00048279,2]
[320910238,1711701039810,-175.52521133,0.00048279,2]
[320910239,1711701039819,-175.52521133,0.00048279,2]
[320910240,1711701039828,-175.52521133,0.00048279,2]
[320910241,1711701039838,-175.52521133,0.00048279,2]
[320910242,1711701039847,-175.52521133,0.00048279,2]
[320910243,1711701039857,-175.52521133,0.00048279,2]
[320910244,1711701039866,-175.52521133,0.00048279,2]
[320910245,1711701039876,-175.52521133,0.00048279,2]
[320910246,1711701039885,-175.52521133,0.00048279,2]
[320910247,1711701039894,-175.52521133,0.00048279,2]
[320910248,1711701039903,-175.52521133,0.00048279,2]
[320910249,1711701039913,-175.52521133,0.00048279,2]
[320910250,1711701039924,-175.52521133,0.00048279,2]
[320910251,1711701039933,-175.52521133,0.00048279,2]
[320910252,1711701039942,-175.52521133,0.00048279,2]
[320910253,1711701039951,-175.52521133,0.00048279,2]
[320910254,1711701039961,-175.52521133,0.00048279,2]
[320910255,1711701039971,-175.52521133,0.00048279,2]
[320910256,1711701039980,-175.52521133,0.00048279,2]
[320910257,1711701039990,-175.52521133,0.00048279,2]
[320910258,1711701040001,-175.52521133,0.00048279,2]
[320910259,1711701040011,-175.52521133,0.00048279,2]
[320910260,1711701040021,-447.88430443,0.00048287,2]
[320910261,1711701040030,-155.70741753,0.00048288,14]
[320910262,1711701040040,-3868.50431528,0.00048289,2]
[320910263,1711701040049,-298915.52809353,0.00048289,4]
[320910265,1711701040067,-106366.60223327,0.0004829,10]
[320910266,1711701040081,-253.11592507,0.00048295,30]
[320910267,1711701040092,-150.0,0.00048295,30]
[320910268,1711701040102,-150.0,0.00048295,30]
[320910270,1711701040111,-150.0,0.00048295,30]
[320910272,1711701040122,-150.0,0.00048295,30]
[320910274,1711701040132,-253.11592507,0.00048349,30]
[320910276,1711701040142,-150.0,0.00048376,30]
[320910278,1711701040152,-511.27239,0.0004839,42]
[320910280,1711701040162,-162.98547481,0.00048391,3]
[320910282,1711701040173,-150.0,0.000484,30]
[320910285,1711701040184,-253.11592507,0.00048403,30]
[320910287,1711701040195,-150.032917,0.00048448,102]
[320910289,1711701040205,-253.11592507,0.00048458,30]
[320910291,1711701040215,-150.0,0.00048458,30]
[320910293,1711701040225,-150.0,0.00048505,30]
[320910295,1711701040235,-253.11592507,0.00048512,30]
[320910297,1711701040245,-150.0,0.00048539,30]
[320910299,1711701040256,-253.11592507,0.00048566,30]
[320910301,1711701040266,-231.354962,0.00048573,30]
[320910303,1711701040277,-150.0,0.00048611,30]
[320910305,1711701040287,-253.11592507,0.0004862,30]
[320910307,1711701040297,-150.0,0.0004862,30]
[320910309,1711701040306,-253.11592507,0.00048674,30]
[320910310,1711701040316,-304.39446843,0.0004868,2]
[320910311,1711701040326,-5415.15551,0.000487,2]
[320910312,1711701040335,-150.15,0.000487,120]
[320910313,1711701040345,-150.0,0.00048701,30]
[320910314,1711701040355,-1381.00929498,0.00048702,2]
[320910315,1711701040365,-177.25,0.00048707,15]
[320910316,1711701040374,-150.0,0.00048716,30]
[320910317,1711701040384,-253.11592507,0.00048729,30]
[320910318,1711701040393,-150.0,0.00048746,2]
[320910319,1711701040403,-5000.0,0.00048767,3]
[320910320,1711701040413,-1103.9209467,0.0004878,25]
[320910321,1711701040422,-182.74077982,0.0004878,2]
[320910322,1711701040432,-253.11592507,0.00048783,30]
[320910323,1711701040441,-150.0,0.00048783,30]
[320910324,1711701040451,-479.0,0.000488,37]
[320910325,1711701040461,-150.0,0.000488,67]
[320910326,1711701040471,-3598.45451596,0.000488,2]
[320910327,1711701040480,-150.0,0.00048821,30]
[320910328,1711701040490,-300.0,0.00048835,120]
[320910329,1711701040500,-253.11592507,0.00048837,30]
[320910330,1711701040509,-208.34986372,0.0004886,2]
[320910331,1711701040519,-150.0,0.00048864,30]
[320910332,1711701040529,-5004.6421654,0.0004887,120]
[320910333,1711701040539,-4209.6084449,0.0004887,2]
[320910334,1711701040549,-1648.4400206,0.0004887,2]
[320910335,1711701040560,-30477.4320648,0.0004887,2]
[320910336,1711701040571,-1243.4589269,0.0004887,2]
[320910337,1711701040581,-150.15,0.0004887,120]
[320910338,1711701040594,-150.15,0.0004887,120]
[320910339,1711701040604,-150.15,0.0004887,120]
[320910340,1711701040614,-778.12509407,0.00048877,2]
[320910341,1711701040624,-184.28060754,0.00048878,4]
[320910342,1711701040634,-167.74501,0.00048878,4]
[320910343,1711701040643,-263.65725635,0.00048879,4]
[320910344,1711701040653,-777.45739094,0.00048879,4]
[320910345,1711701040663,-500.0,0.00048879,2]
[320910346,1711701040673,-517.78923275,0.00048879,2]
[320910347,1711701040683,-500.0,0.00048879,60]
[320910348,1711701040693,-157.0,0.0004888,7]
[320910349,1711701040703,-54487.10305236,0.0004888,2]
[320910351,1711701040720,-1122.94407473,0.0004888,2]
[320910352,1711701041082,-1048.445,0.0004888,2]
[320910482,1711701904794,150.0,0.00034548,10]
[320910483,1711701973484,-402.08979748,0.00039294,4]
[320910493,1711702177105,-593.48897874,0.00039298,4]
[320910502,1711702231975,-402.08979748,0.00039298,4]
[320910503,1711702231985,-187.5427,0.00039299,120]
[320910504,1711702231994,-530.0,0.000394,2]
[320910505,1711702232004,-1102.43058949,0.000425,2]
[320910506,1711702232026,-367.88871051,0.000425,2]
[320910507,1711702232035,-199.7929768,0.000426,30]
[320910508,1711702232047,-10415.98876682,0.000426,30]
[320910509,1711702232141,-3384.21825638,0.000426,30]
[320910510,1711702232150,-334.62,0.00044907,2]
[320910511,1711702232160,-208.2586,0.00045684,2]
[320910512,1711702232169,-3105.61063994,0.00045784,4]
[320910513,1711702232178,-567.68168731,0.00045858,7]
[320910514,1711702232187,-315.8073393,0.00045859,4]
[320910515,1711702232197,-155.45137426,0.0004586,4]
[320910516,1711702232206,-200.0,0.00046753,2]
[320910517,1711702232215,-1236.8,0.00046761,2]
[320910518,1711702232225,-170.2,0.00046785,120]
[320910519,1711702232235,-302.70701161,0.00046801,4]
[320910520,1711702232247,-1356.64925387,0.00046802,2]
[320910552,1711702237739,-163.03705733,0.000424,2]
[320910553,1711702237749,-163.03705727,0.00043463,2]
[320910554,1711702237759,-6672.7258854,0.00046802,2]
[320910555,1711702237771,-359.65357045,0.00046802,2]
[320910556,1711702237784,-437.175,0.00046802,2]
[320910603,1711702239522,-1491.88385839,0.00046802,2]
[320910619,1711702239641,-495.56476405,0.00046802,2]
[320910621,1711702239654,-1000.0,0.00046802,2]
[320910626,1711702239695,-313.67458817,0.00046802,2]
[320910645,1711702239918,-11772.67307967,0.00046802,2]
[320910646,1711702239928,-153.61,0.00046808,15]
[320910648,1711702239937,-250.0,0.00046808,112]
[320910650,1711702239947,-250.0,0.00046829,120]
[320910652,1711702239956,-232.04,0.00046861,120]
[320910654,1711702239965,-773.75,0.00046917,2]
[320910656,1711702239975,-1000.0,0.00046945,2]
[320910658,1711702239985,-209.29,0.00046947,10]
[320910660,1711702239995,-515.18,0.00046974,120]
[320910662,1711702240005,-334.62,0.00047171,2]
[320910664,1711702240015,-230.87762168,0.00047698,4]
[320910666,1711702240025,-2648.07,0.00047703,120]
[320910668,1711702240035,-169.92,0.00047928,2]
[320910670,1711702240044,-405.92781794,0.00047938,4]
[320910672,1711702240055,-854.39066674,0.00047938,10]
[320910674,1711702240065,-2162.21648044,0.00047938,4]
[320910676,1711702240075,-492.8238325,0.00047938,4]
[320910677,1711702240086,-2169.11945185,0.00047939,4]
[320910679,1711702240094,-509.03297259,0.0004829,10]
[320910681,1711702240104,-426.06033,0.0004839,42]
[320910683,1711702240114,-157.032917,0.00048448,101]
[320910685,1711702240124,-511.0,0.00048466,30]
[320910687,1711702240135,-158.63032544,0.00048535,30]
[320910689,1711702240144,-511.0,0.00048739,30]
[320910692,1711702240155,-1079.53635486,0.00048779,2]
[320910694,1711702240166,-1011.92753442,0.0004878,25]
[320910696,1711702240177,-479.0,0.000488,37]
[320910698,1711702240187,-2000.0,0.000488,30]
[320910700,1711702240197,-2000.0,0.000488,30]
[320910702,1711702240207,-429.55023787,0.00048835,120]
[320910704,1711702240217,-4480.2319017,0.0004887,2]
[320910835,1711702242540,-163.03705727,0.00044527,2]
[320910836,1711702242550,-5162.96726356,0.0004887,2]
[320910837,1711702242562,-1999.99319263,0.0004887,2]
[320910838,1711702242601,-13106.17205351,0.0004887,2]
[320910839,1711702242611,-1700.7357467,0.0004887,2]
[320910840,1711702242622,-2068.8015321,0.0004887,2]
[320910841,1711702242632,-409.8927312,0.0004887,2]
[320910842,1711702242641,-300.3124771,0.0004887,2]
[320910843,1711702242652,-150.14,0.0004887,120]
[320910844,1711702242662,-150.14,0.0004887,120]
[320910845,1711702242672,-150.14,0.0004887,120]
[320910846,1711702242682,-156.81,0.0004887,2]
[320910847,1711702242692,-486.36160265,0.00048877,2]
[320910848,1711702242702,-459.7138166,0.00048878,4]
[320910849,1711702242712,-357.96365984,0.00048878,4]
[320910850,1711702242721,-1030.80917958,0.00048878,4]
[320910851,1711702242731,-477.95929177,0.00048879,2]
[320910852,1711702242741,-54894.16247258,0.00048879,4]
[320910853,1711702242750,-500.0,0.00048879,60]
[320910854,1711702242759,-5000.0,0.00048879,3]
[320910855,1711702242773,-152.0,0.0004888,7]
[320910856,1711702242782,-111526.05841066,0.0004888,2]
[320910857,1711702242811,-1054.47713702,0.0004888,2]
[320910858,1711702242823,-27576.65562011,0.0004888,2]
[320910859,1711702242837,-2774.82333776,0.0004888,2]
[320910860,1711702242860,-415.016034,0.0004888,2]
[320910861,1711702242885,-2728.45782218,0.0004888,2]
[320910862,1711702242897,-4476.7547404,0.0004888,2]
[320910863,1711702243001,-3609.60482592,0.0004888,2]
[320910896,1711702245516,-392.95929911,0.00039298,2]
[320910898,1711702245526,-1035.35670208,0.00039298,4]
[320910899,1711702245535,-2356.80240187,0.00046829,2]
[320910900,1711702245545,-1491.2938486,0.00047815,2]
[320910901,1711702245554,-1491.2938486,0.00047964,2]
[320910902,1711702245564,-511.0,0.0004822,30]
[320910903,1711702245574,-1491.2938486,0.00048244,2]
[320910904,1711702245584,-511.0,0.00048494,30]
[320910905,1711702245595,-1491.2938486,0.00048607,2]
[320910906,1711702245604,-150.0,0.00048731,2]
[320910907,1711702245613,-511.0,0.00048767,30]
[320910908,1711702245623,-477.95929177,0.00048879,2]
[320910909,1711702245632,-9154.7791908,0.0004888,2]
[320910910,1711702246253,-304.39446843,0.0004878,2]
[320910911,1711702246263,-160.11551603,0.0004888,2]
[320910912,1711702246297,-787.30992977,0.0004888,2]
[320910933,1711702428951,507.37949549,0.000321,2]
[320910935,1711702546097,-312.97319877,0.0004,30]
[320910936,1711702546119,-343.6602646,0.0004,30]
[320910937,1711702546139,-9505.09267818,0.0004,7]
[320910938,1711702555518,-281.46285823,0.00035999,4]
[320910939,1711702814776,-281.46285823,0.00035999,4]
[320910940,1711702966231,-610.28241006,0.00036,2]
[320910941,1711702966253,-1617.35231026,0.00036,2]
[320910942,1711702966274,-321.67183798,0.00040743,4]
[320910944,1711703132783,-281.46285823,0.00039399,4]
[320910966,1711703381759,333.25536545,0.0002,2]
[320910967,1711703381784,16080.57906472,0.0002,2]